bitfinex-derivatives/quotes_ETHF0:USTF0_20250417
["timestamp","ask_amount","ask_price","bid_price","bid_amount"]
[1744905401441,2.94615,1585.0,1584.9,2.90113]
[1744905401740,2.94615,1585.0,1584.9,1.639]
[1744905401942,1.26213,1584.9,1584.8,4.47001]
[1744905402237,1.26213,1584.9,1584.8,6.08261]
[1744905402741,1.26208,1585.0,1584.9,1.26213]
[1744905402936,1.26208,1585.0,1584.9,3.71193]
[1744905404828,1.26208,1585.0,1584.9,2.4498]
[1744905405432,2.94618,1585.0,1584.9,2.4498]
[1744905405836,1.26213,1584.9,1584.8,3.2078]
[1744905406140,2.94623,1584.9,1584.8,4.47001]
[1744905406734,2.94623,1584.9,1584.8,6.13841]
[1744905407642,2.94623,1584.9,1584.8,4.8762]
[1744905408044,2.94623,1584.9,1584.8,6.13841]
[1744905409138,1.26229,1584.7,1584.6,8.41256114]
[1744905409646,12.56599,1584.7,1584.6,8.41256114]
[1744905410035,7.56599,1584.7,1584.6,8.41256114]
[1744905410236,1.26237,1584.6,1584.5,8.41256114]
[1744905410440,3.01107,1584.6,1584.5,8.41256114]
[1744905411936,1.26237,1584.6,1584.5,9.67501114]
[1744905412137,1.26237,1584.6,1584.5,12.93941114]
[1744905412644,1.26237,1584.6,1584.5,11.67696114]
[1744905412844,1.26237,1584.6,1584.5,10.02366114]
[1744905413837,1.26237,1584.6,1584.5,11.28611114]
[1744905414037,1.26237,1584.6,1584.5,10.02366114]
[1744905414243,1.26237,1584.6,1584.5,8.41256114]
[1744905414942,1.26237,1584.6,1584.5,1.6005]
[1744905415245,1.26237,1584.6,1584.5,2.86295]
[1744905415648,1.26237,1584.6,1584.5,1.6005]
[1744905418050,2.97497,1584.6,1584.5,1.6005]
[1744905419851,1.26237,1584.6,1584.5,1.6005]
[1744905421451,2.86447,1584.6,1584.5,1.6005]
[1744905421649,3.75077,1584.6,1584.5,1.6005]
[1744905424346,3.75077,1584.6,1584.5,4.8083]
[1744905424543,1.26245,1584.5,1584.4,0.00947598]
[1744905424744,2.86445,1584.5,1584.4,0.00947598]
[1744905424946,7.86445,1584.5,1584.4,0.00947598]
[1744905425146,17.05301145,1584.5,1584.4,0.00947598]
[1744905426652,1.26245,1584.5,1584.4,4.47980598]
[1744905427047,1.26245,1584.5,1584.4,6.12200598]
[1744905427854,1.26238,1584.7,1584.6,1.26233]
[1744905428046,1.26238,1584.7,1584.6,4.47013]
[1744905428448,1.26238,1584.7,1584.6,4.0627]
[1744905428746,2.92228,1584.7,1584.6,4.0627]
[1744905428946,2.92228,1584.7,1584.6,5.764]
[1744905429958,3.75658,1584.7,1584.6,3.2078]
[1744905430956,4.59518,1584.7,1584.6,3.2078]
[1744905431361,1.26245,1584.5,1584.4,4.02907598]
[1744905431550,1.26245,1584.5,1584.4,0.82127598]
[1744905431750,1.26245,1584.5,1584.4,4.02907598]
[1744905431962,1.26245,1584.5,1584.4,5.65847598]
[1744905432154,1.26245,1584.5,1584.4,4.84667598]
[1744905433362,1.26245,1584.5,1584.4,3.21727598]
[1744905434361,1.26245,1584.5,1584.4,4.82347598]
[1744905434758,1.26245,1584.5,1584.4,6.08600598]
[1744905435366,1.26245,1584.5,1584.4,4.82347598]
[1744905436063,1.26245,1584.5,1584.4,6.08600598]
[1744905436863,1.26245,1584.5,1584.4,4.82347598]
[1744905438966,1.26245,1584.5,1584.4,3.21727598]
[1744905439167,1.26245,1584.5,1584.4,4.47980598]
[1744905439357,1.26245,1584.5,1584.4,3.21727598]
[1744905439959,1.26245,1584.5,1584.4,4.86447598]
[1744905441673,1.26245,1584.5,1584.4,6.12700598]
[1744905441968,1.26245,1584.5,1584.4,4.86447598]
[1744905442770,1.26245,1584.5,1584.4,6.12700598]
[1744905442971,1.26245,1584.5,1584.4,4.86447598]
[1744905445469,1.26245,1584.5,1584.4,6.12700598]
[1744905445669,1.26245,1584.5,1584.4,4.86447598]
[1744905447076,1.26245,1584.5,1584.4,3.21727598]
[1744905447272,1.26245,1584.5,1584.4,0.00947598]
[1744905447273,12.24321145,1584.5,1584.4,0.00947598]
[1744905447482,1.26269,1584.2,1584.1,3.2078]
[1744905447981,1.26277,1584.1,1584.0,8.41356114]
[1744905448272,2.99327,1584.1,1584.0,12.39771363]
[1744905448674,2.99327,1584.1,1584.0,17.22871363]
[1744905451481,2.99327,1584.1,1584.0,4.832]
[1744905451977,1.26277,1584.1,1584.0,6.09485]
[1744905452179,1.26277,1584.1,1584.0,7.78095]
[1744905452379,1.26277,1584.1,1584.0,6.5181]
[1744905454781,2.14677,1584.1,1584.0,3.2088]
[1744905455378,2.14677,1584.1,1584.0,4.9508]
[1744905455577,3.77547,1584.1,1584.0,4.9508]
[1744905455978,3.77547,1584.1,1584.0,3.2088]
[1744905456867,3.77547,1584.1,1584.0,0.001]
[1744905457273,1.26285,1584.0,1583.9,0.00947598]
[1744905457468,8.27615,1584.0,1583.9,0.00947598]
[1744905457668,13.27615,1584.0,1583.9,0.00947598]
[1744905457874,8.27615,1584.0,1583.9,0.00947598]
[1744905467687,1.26309,1583.7,1583.6,2.5943]
[1744905470292,1.26317,1583.6,1583.5,4.08937598]
[1744905470490,1.26317,1583.6,1583.5,5.85167598]
[1744905470682,1.26317,1583.6,1583.5,7.11492598]
[1744905470883,1.26317,1583.6,1583.5,5.85167598]
[1744905471688,2.87057,1583.6,1583.5,5.85167598]
[1744905472186,2.87057,1583.6,1583.5,0.00947598]
[1744905472391,1.26341,1583.3,1583.2,4.47129]
[1744905474183,1.26341,1583.3,1583.2,3.2078]
[1744905475489,1.26349,1583.2,1583.1,0.00947598]
[1744905476583,2.98789,1583.2,1583.1,0.00947598]
[1744905476990,1.26349,1583.2,1583.1,0.00947598]
[1744905478893,2.98789,1583.2,1583.1,0.00947598]
[1744905479386,3.84189,1583.2,1583.1,0.00947598]
[1744905481192,1.26349,1583.2,1583.1,0.00947598]
[1744905481992,1.26349,1583.2,1583.1,1.27304598]
[1744905482193,1.26349,1583.2,1583.1,0.00947598]
[1744905483993,2.88119,1583.2,1583.1,0.00947598]
[1744905484384,1.26357,1583.1,1583.0,0.001]
[1744905484588,4.49967,1583.1,1583.0,0.001]
[1744905486398,1.26365,1583.0,1582.9,1.6414]
[1744905486702,1.26381,1582.8,1582.7,0.8414]
[1744905487198,1.26381,1582.8,1582.7,2.4828]
[1744905487697,1.26381,1582.8,1582.6,5.27496]
[1744905487698,1.26389,1582.7,1582.6,4.011]
[1744905487896,1.26405,1582.5,1582.4,1.6414]
[1744905488094,1.26405,1582.5,1582.4,6.11333]
[1744905488295,1.27348598,1582.6,1582.5,1.26397]
[1744905488510,1.27348598,1582.6,1582.5,2.90537]
[1744905488698,0.00947598,1582.6,1582.5,7.90537]
[1744905498115,1.2638,1582.9,1582.8,1.26381]
[1744905498306,1.2638,1582.9,1582.8,4.47161]
[1744905498500,1.2638,1582.9,1582.8,6.14901]
[1744905499615,2.97258598,1583.0,1582.9,1.26373]
[1744905499912,0.00947598,1583.0,1582.9,3.81753]
[1744905500110,5.98076145,1583.6,1582.9,4.62033]
[1744905500307,3.79326,1583.4,1583.2,3.2078]
[1744905500512,1.26341,1583.3,1583.2,3.2078]
[1744905500710,3.75081,1583.3,1583.2,3.2078]
[1744905501012,3.75081,1583.3,1583.2,4.47129]
[1744905501513,3.75081,1583.3,1583.2,6.07449]
[1744905502219,3.75081,1583.3,1583.2,4.811]
[1744905503416,3.75081,1583.3,1583.2,6.07449]
[1744905503817,2.13606598,1583.4,1583.3,1.26341]
[1744905504116,3.82346598,1583.4,1583.3,2.93571]
[1744905504716,3.82346598,1583.4,1583.3,1.6723]
[1744905505710,1.26341,1583.3,1583.2,3.2078]
[1744905505915,2.95081,1583.3,1583.2,3.2078]
[1744905506111,7.95081,1583.3,1583.2,3.2078]
[1744905506503,2.95081,1583.3,1583.2,3.2078]
[1744905506710,2.95081,1583.3,1583.2,4.47129]
[1744905507308,2.95081,1583.3,1583.2,3.2078]
[1744905508517,2.95081,1583.3,1583.2,4.47129]
[1744905508818,2.95081,1583.3,1583.2,3.2078]
[1744905509907,2.95081,1583.3,1583.2,4.47129]
[1744905510116,2.95081,1583.3,1583.2,3.2078]
[1744905510418,2.95081,1583.3,1583.2,4.47129]
[1744905510615,2.95081,1583.3,1583.2,3.2078]
[1744905513113,7.95081,1583.3,1583.2,3.2078]
[1744905513818,2.95081,1583.3,1583.2,3.2078]
[1744905514518,1.26349,1583.2,1583.1,1.26354]
[1744905514716,3.84079,1583.2,1583.1,1.26354]
[1744905515121,1.26357,1583.1,1583.0,7.86818]
[1744905515313,1.26357,1583.1,1583.0,6.14008]
[1744905515514,3.77747,1583.1,1583.0,6.14008]
[1744905519926,3.77747,1583.1,1583.0,4.8765]
[1744905520117,3.77747,1583.1,1583.0,6.14015]
[1744905530128,1.26373,1582.9,1582.8,8.4215031]
[1744905530331,4.47153,1582.9,1582.8,8.4215031]
[1744905530534,11.97403,1582.9,1582.8,8.4215031]
[1744905530921,8.76623,1582.9,1582.8,8.4215031]
[1744905531123,6.97403,1582.9,1582.8,8.4215031]
[1744905531323,11.97403,1582.9,1582.8,8.4215031]
[1744905532632,6.97403,1582.9,1582.8,8.4215031]
[1744905533422,11.97403,1582.9,1582.8,8.4215031]
[1744905534534,1.26381,1582.8,1582.7,0.00947598]
[1744905534735,8.29731,1582.8,1582.7,0.00947598]
[1744905540434,3.76031,1582.8,1582.7,0.00947598]
[1744905540840,1.26381,1582.8,1582.7,4.48116598]
[1744905541044,1.26381,1582.8,1582.7,1.78527598]
[1744905541244,2.97461,1582.8,1582.7,1.78527598]
[1744905541830,2.97461,1582.8,1582.7,4.99307598]
[1744905543540,1.26381,1582.8,1582.7,6.25696598]
[1744905543744,1.26381,1582.8,1582.7,11.25696598]
[1744905544041,1.26377,1582.9,1582.8,1.26375]
[1744905544234,1.26377,1582.9,1582.8,2.93235]
[1744905544436,1.26377,1582.9,1582.8,7.93235]
[1744905545133,1.26377,1582.9,1582.8,6.6686]
[1744905545338,1.26377,1582.9,1582.8,7.93241]
[1744905546043,1.26377,1582.9,1582.8,48.73241]
[1744905546639,1.26377,1582.9,1582.8,7.93241]
[1744905547142,1.26377,1582.9,1582.8,48.73241]
[1744905547541,1.26377,1582.9,1582.8,43.73241]
[1744905548136,1.26365,1583.1,1583.0,1.26365]
[1744905548335,1.26365,1583.1,1583.0,4.47145]
[1744905548549,1.26365,1583.1,1583.0,1.26365]
[1744905548735,1.26365,1583.1,1583.0,2.88105]
[1744905549241,1.26365,1583.1,1583.0,6.08985]
[1744905550146,1.26365,1583.1,1583.0,1.6184]
[1744905550438,1.26365,1583.1,1583.0,0.001]
[1744905550636,2.89375,1583.1,1583.0,0.001]
[1744905553037,2.89375,1583.1,1583.0,3.2088]
[1744905553237,2.89375,1583.1,1583.0,0.001]
[1744905555247,2.89375,1583.1,1583.0,3.2088]
[1744905555440,2.89375,1583.1,1583.0,0.001]
[1744905555645,2.89375,1583.1,1583.0,3.2088]
[1744905556839,2.89375,1583.1,1583.0,4.47245]
[1744905557345,2.89375,1583.1,1583.0,3.2088]
[1744905557746,1.26365,1583.1,1583.0,4.47245]
[1744905557948,1.26365,1583.1,1583.0,6.23665]
[1744905558533,1.26357,1583.2,1583.1,1.26357]
[1744905558735,1.26357,1583.2,1583.1,2.99147]
[1744905560945,1.26357,1583.2,1583.1,1.7279]
[1744905561244,2.93577,1583.2,1583.1,1.7279]
[1744905562543,1.26357,1583.1,1583.0,3.2088]
[1744905562742,1.26357,1583.1,1583.0,4.9179]
[1744905563353,1.26357,1583.1,1583.0,6.18155]
[1744905565153,1.26357,1583.1,1583.0,4.9179]
[1744905565856,1.26357,1583.1,1583.0,6.18155]
[1744905566357,1.26357,1583.1,1583.0,4.9179]
[1744905567460,1.26357,1583.1,1583.0,6.18155]
[1744905568750,1.26357,1583.1,1583.0,4.9179]
[1744905569451,1.26357,1583.1,1583.0,6.18155]
[1744905569651,1.26357,1583.1,1583.0,4.9179]
[1744905570055,1.26357,1583.1,1583.0,6.18155]
[1744905570757,1.26357,1583.1,1583.0,4.9179]
[1744905571163,1.26357,1583.1,1583.0,6.18155]
[1744905572772,3.03587,1583.1,1583.0,0.001]
[1744905572962,3.86617,1583.1,1583.0,0.001]
[1744905574972,3.86617,1583.1,1583.0,1.26465]
[1744905575572,3.86617,1583.1,1583.0,0.001]
[1744905576770,3.86617,1583.1,1583.0,4.47245]
[1744905576963,3.86617,1583.1,1583.0,3.4357]
[1744905577371,3.86617,1583.1,1583.0,4.69935]
[1744905577671,3.86617,1583.1,1583.0,3.4357]
[1744905577864,3.86617,1583.1,1583.0,1.6894]
[1744905578060,3.86617,1583.1,1583.0,0.001]
[1744905578266,3.86617,1583.1,1583.0,1.6894]
[1744905578871,1.26357,1583.1,1583.0,6.16085]
[1744905579264,0.00947598,1583.4,1583.0,11.16085]
[1744905579462,0.00947598,1583.4,1583.3,4.47121]
[1744905579666,1.27280598,1583.4,1583.3,3.2078]
[1744905580159,1.27280598,1583.4,1583.3,4.9238]
[1744905581067,2.15760598,1583.4,1583.3,4.9238]
[1744905581564,2.15760598,1583.4,1583.3,1.716]
[1744905582065,2.15760598,1583.4,1583.3,2.97941]
[1744905583075,0.00947598,1583.4,1583.3,2.97941]
[1744905583372,1.27280598,1583.4,1583.3,2.97941]
[1744905590480,1.27280598,1583.4,1583.3,1.716]
[1744905590983,3.91170598,1583.4,1583.3,1.716]
[1744905591183,3.91170598,1583.4,1583.3,2.97941]
[1744905591986,3.91170598,1583.4,1583.3,1.716]
[1744905592682,3.91170598,1583.4,1583.3,2.97941]
[1744905593076,3.91170598,1583.4,1583.3,1.716]
[1744905594483,3.91170598,1583.4,1583.3,2.97941]
[1744905594791,3.91170598,1583.4,1583.3,1.716]
[1744905595185,3.91170598,1583.4,1583.3,2.97941]
[1744905595695,3.03880598,1583.4,1583.3,2.97941]
[1744905595893,1.27280598,1583.4,1583.3,2.97941]
[1744905600111,2.91990598,1583.4,1583.3,2.97941]
[1744905600403,0.00947598,1583.4,1583.3,5.0]
[1744905600604,5.98076145,1583.9,1583.3,5.0]
[1744905600803,0.8891,1583.8,1583.2,3.2078]
[1744905601004,3.2078,1583.4,1583.3,1.7157]
[1744905601294,6.36591,1583.6,1583.0,11.6303031]
[1744905601496,3.15813,1583.5,1583.2,3.2078]
[1744905601804,8.38721867,1584.0,1583.2,0.8011]
[1744905601995,8.38721867,1584.0,1583.3,2.5152]
[1744905602297,8.38721867,1584.0,1583.4,1.6653]
[1744905602500,8.38721867,1584.0,1583.5,0.8011]
[1744905602701,21.00218975,1584.4,1583.9,3.2078]
[1744905603000,15.82283947,1584.3,1584.0,1.6653]
[1744905603200,12.62451545,1584.3,1583.9,3.2078]
[1744905603405,12.62451545,1584.3,1584.0,3.2078]
[1744905603596,1.26277,1584.1,1584.0,3.2078]
[1744905604295,1.26291,1584.0,1583.9,3.2078]
[1744905604502,6.37400598,1584.3,1583.9,3.2078]
[1744905604697,1.26285,1584.0,1583.9,3.2078]
[1744905604898,0.00947598,1584.3,1583.9,3.2078]
[1744905605096,3.21727598,1584.3,1583.9,3.2078]
[1744905605292,0.00947598,1584.3,1583.9,3.2078]
[1744905605496,0.00947598,1584.3,1583.5,0.00947598]
[1744905605497,8.16602598,1584.3,1583.7,3.2078]
[1744905605697,3.21727598,1584.3,1583.8,40.8]
[1744905605897,3.21727598,1584.3,1583.5,3.21727598]
[1744905606102,3.2078,1583.9,1583.5,4.48044598]
[1744905606304,1.26317,1583.6,1583.5,0.00947598]
[1744905606801,1.26355,1583.2,1583.0,1.26463]
[1744905607003,3.2078,1583.1,1583.0,0.001]
[1744905607305,3.15857,1583.3,1582.7,3.2078]
[1744905607499,3.15857,1583.3,1582.4,3.16012]
[1744905607500,1.26359,1583.1,1582.8,1.26374]
[1744905607698,3.2078,1583.2,1582.8,1.26379]
[1744905607894,1.26369,1583.0,1582.8,0.00947598]
[1744905608199,1.26373,1582.9,1582.8,0.00947598]
[1744905608705,6.26373,1582.9,1582.8,0.00947598]
[1744905608904,1.26373,1582.9,1582.8,0.00947598]
[1744905609104,0.00947598,1583.1,1582.8,1.27327598]
[1744905609312,0.00947598,1583.1,1582.9,3.2078]
[1744905609604,0.00947598,1583.1,1583.0,1.26365]
[1744905609800,3.1569,1584.2,1583.2,3.15868]
[1744905609996,3.2078,1584.1,1583.7,3.2078]
[1744905610299,3.2078,1583.9,1583.5,3.2078]
[1744905610498,1.26303,1583.8,1583.6,40.8]
[1744905610801,3.15697,1584.1,1583.7,3.2078]
[1744905611008,1.26306,1583.8,1583.6,42.06313]
[1744905611304,1.26301,1583.8,1583.7,3.2078]
[1744905611606,0.00947598,1583.9,1583.7,3.2078]
[1744905611807,1.26301,1583.8,1583.7,3.2078]
[1744905612202,1.26301,1583.8,1583.7,4.47089]
[1744905612398,1.26301,1583.8,1583.7,3.2078]
[1744905612707,1.27241598,1583.9,1583.7,3.2078]
[1744905612896,0.00947598,1583.9,1583.7,4.47087]
[1744905613104,1.26301,1583.8,1583.7,3.2078]
[1744905613613,1.26301,1583.8,1583.5,2.07667598]
[1744905613614,1.26317,1583.6,1583.5,0.00947598]
[1744905613805,1.26317,1583.6,1583.5,5.98e-06]
[1744905614001,6.26317,1583.6,1583.5,5.98e-06]
[1744905614197,3.16694598,1583.9,1583.5,5.98e-06]
[1744905614397,3.21727598,1583.9,1583.5,3.20780598]
[1744905614612,1.26317,1583.6,1583.5,3.20780598]
[1744905615207,1.26313,1583.7,1583.5,4.47099598]
[1744905615404,0.00947598,1583.9,1583.6,0.8444]
[1744905615709,1.26309,1583.7,1583.6,0.8444]
[1744905615901,1.26317,1583.6,1583.5,3.20780598]
[1744905616097,2.95857,1583.6,1583.5,5.98e-06]
[1744905619208,3.79757,1583.6,1583.5,5.98e-06]
[1744905619507,1.26307,1583.8,1583.7,1.26307]
[1744905619713,0.00947598,1583.9,1583.8,1.26301]
[1744905619906,0.00947598,1583.9,1583.8,7.38721]
[1744905620101,0.00044672,1583.9,1583.8,19.07221]
[1744905620811,0.00044672,1583.9,1583.8,59.87221]
[1744905621209,0.00044672,1583.9,1583.8,55.35621]
[1744905621511,0.00044672,1583.9,1583.8,50.35621]
[1744905621706,0.00044672,1583.9,1583.8,54.87221]
[1744905622406,1.26337672,1583.9,1583.8,48.2642]
[1744905622609,1.26301,1583.8,1583.7,3.2078]
[1744905622810,1.26317,1583.6,1583.5,3.20780598]
[1744905623301,1.26317,1583.6,1583.5,4.47105598]
[1744905623503,1.26317,1583.6,1583.5,3.20780598]
[1744905623914,1.26317,1583.6,1583.5,4.83130598]
[1744905624412,1.7754,1583.7,1583.5,6.09448598]
[1744905624614,1.26317,1583.6,1583.5,3.20780598]
[1744905624807,1.26317,1583.6,1583.5,4.47105598]
[1744905625414,1.26317,1583.6,1583.5,3.20780598]
[1744905625708,1.26317,1583.6,1583.5,4.47105598]
[1744905626308,1.26317,1583.6,1583.5,3.20780598]
[1744905626513,1.26317,1583.6,1583.5,4.47105598]
[1744905626909,1.26314,1583.7,1583.6,1.26315]
[1744905627107,1.26305,1583.8,1583.7,1.26306]
[1744905627303,1.26303,1583.8,1583.7,3.2078]
[1744905627606,1.26341672,1583.9,1583.8,1.26301]
[1744905627801,1.26301,1583.8,1583.7,4.47086]
[1744905628213,1.26342672,1583.9,1583.8,1.26301]
[1744905628514,1.26338672,1583.9,1583.8,1.26301]
[1744905628914,1.26338672,1583.9,1583.8,42.06301]
[1744905629715,0.00044672,1583.9,1583.8,42.06301]
[1744905630017,1.26337672,1583.9,1583.8,40.8]
[1744905630214,1.26337672,1583.9,1583.8,42.06301]
[1744905630403,1.26301,1583.8,1583.7,3.2078]
[1744905630715,3.79071,1583.8,1583.7,4.47089]
[1744905630917,1.26301,1583.8,1583.7,4.47089]
[1744905632107,1.66174672,1583.9,1583.8,1.26301]
[1744905632108,2.92473672,1583.9,1583.8,1.26301]
[1744905632313,1.26343672,1583.9,1583.8,1.26301]
[1744905632918,1.26301,1583.8,1583.7,4.47084]
[1744905633415,1.26339672,1583.9,1583.8,1.26301]
[1744905633614,0.00044672,1583.9,1583.8,1.26301]
[1744905633918,0.00044672,1583.9,1583.8,7.11901]
[1744905634116,0.00044672,1583.9,1583.8,12.11901]
[1744905635410,0.00044672,1583.9,1583.7,4.47085]
[1744905635621,1.26301,1583.8,1583.7,4.47085]
[1744905636014,1.26301,1583.8,1583.7,3.2078]
[1744905636213,6.26301,1583.8,1583.7,3.2078]
[1744905636415,8.03151,1583.8,1583.7,3.2078]
[1744905636615,3.03151,1583.8,1583.7,4.47089]
[1744905636817,3.03071,1583.8,1583.7,4.47089]
[1744905637021,4.77871,1583.8,1583.7,6.16719]
[1744905637322,0.00044672,1583.9,1583.8,1.26301]
[1744905637616,0.00044672,1583.9,1583.8,2.95931]
[1744905638017,1.26337672,1583.9,1583.8,2.95931]
[1744905638929,1.26301,1583.8,1583.7,3.2078]
[1744905639219,4.73071,1583.8,1583.7,4.47089]
[1744905640121,1.7453,1583.8,1583.7,4.47089]
[1744905640322,1.26337672,1583.9,1583.8,1.26301]
[1744905640621,1.26337672,1583.9,1583.8,7.43631]
[1744905640823,0.00044672,1583.9,1583.8,7.43631]
[1744905641425,1.26337672,1583.9,1583.8,7.43631]
[1744905641725,0.00044672,1583.9,1583.8,7.43631]
[1744905642022,1.26337672,1583.9,1583.8,7.43631]
[1744905642327,1.61824672,1583.9,1583.8,7.43631]
[1744905642825,2.88117672,1583.9,1583.8,7.43631]
[1744905643217,0.00044672,1583.9,1583.8,7.43631]
[1744905643923,0.00044672,1583.9,1583.8,13.29231]
[1744905644130,0.00044672,1583.9,1583.8,18.29231]
[1744905645028,0.00044672,1583.9,1583.8,13.29231]
[1744905645534,1.26337672,1583.9,1583.8,7.5153]
[1744905645827,3.74757672,1583.9,1583.8,7.5153]
[1744905646129,2.48464672,1583.9,1583.8,8.77831]
[1744905646330,0.00044672,1583.9,1583.8,8.77831]
[1744905647531,0.00044672,1583.9,1583.8,13.77831]
[1744905648831,0.00044672,1583.9,1583.8,8.77831]
[1744905650830,0.00044672,1583.9,1583.8,13.77831]
[1744905651236,0.00044672,1583.9,1583.8,8.77831]
[1744905651436,0.00044672,1583.9,1583.8,1.6593]
[1744905651733,1.26309,1583.7,1583.6,8.40122937]
[1744905651934,1.26317,1583.6,1583.5,12.60185003]
[1744905652129,6.16837,1583.6,1583.5,12.60185003]
[1744905652332,11.16837,1583.6,1583.5,12.60185003]
[1744905652827,6.16837,1583.6,1583.5,12.60185003]
[1744905653038,11.16837,1583.6,1583.5,12.60185003]
[1744905653641,2.96057,1583.6,1583.5,13.86510003]
[1744905653836,2.96057,1583.6,1583.5,12.60185003]
[1744905654030,2.96057,1583.6,1583.5,13.86510003]
[1744905654734,2.96057,1583.6,1583.5,1.26325598]
[1744905654940,1.6974,1583.6,1583.5,1.26325598]
[1744905655233,1.26315,1583.7,1583.6,1.26315]
[1744905655431,2.95795,1583.7,1583.6,1.6459]
[1744905656631,1.26317,1583.6,1583.5,5.98e-06]
[1744905656831,2.86557,1583.6,1583.5,5.98e-06]
[1744905657938,2.86557,1583.6,1583.5,1.26325598]
[1744905658139,1.6024,1583.6,1583.5,1.26325598]
[1744905658325,2.86557,1583.6,1583.5,3.01655598]
[1744905658832,2.86557,1583.6,1583.5,1.75330598]
[1744905659138,2.86557,1583.6,1583.5,5.98e-06]
[1744905659526,7.86557,1583.6,1583.5,5.98e-06]
[1744905660137,2.86557,1583.6,1583.5,5.98e-06]
[1744905660339,7.86557,1583.6,1583.5,5.98e-06]
[1744905660735,2.86557,1583.6,1583.5,1.26325598]
[1744905660930,1.6024,1583.6,1583.5,1.26325598]
[1744905661133,7.67876145,1583.8,1583.7,1.26309]
[1744905661334,10.56517145,1583.8,1583.7,1.26309]
[1744905661538,1.26309,1583.7,1583.6,1.26312]
[1744905661740,2.88649,1583.7,1583.6,1.26312]
[1744905661945,1.26317,1583.6,1583.5,5.98e-06]
[1744905662145,6.23777,1583.6,1583.5,5.98e-06]
[1744905662437,1.26357,1583.1,1583.0,12.60284405]
[1744905662642,5.77757,1583.1,1583.0,12.60284405]
[1744905662833,10.77757,1583.1,1583.0,12.60284405]
[1744905663035,18.52513145,1583.1,1583.0,12.60284405]
[1744905663234,18.52513145,1583.1,1583.0,11.13588342]
[1744905663436,18.52513145,1583.1,1583.0,7.00356342]
[1744905664239,18.52513145,1583.1,1583.0,5.46816342]
[1744905664436,18.52513145,1583.1,1583.0,0.95908342]
[1744905664641,18.52513145,1583.1,1583.0,3.42e-06]
[1744905665950,9.01113145,1583.1,1583.0,3.42e-06]
[1744905666641,3.03037,1583.1,1583.0,3.42e-06]
[1744905667642,12.54537,1583.1,1583.0,3.42e-06]
[1744905669845,7.54537,1583.1,1583.0,3.42e-06]
[1744905670037,3.03037,1583.1,1583.0,3.42e-06]
[1744905670239,0.8442,1583.3,1583.2,1.26349]
[1744905670542,1.6659,1583.3,1583.2,1.26349]
[1744905671842,1.26341,1583.3,1583.2,3.00595]
[1744905672042,1.26349,1583.2,1583.1,4.47132]
[1744905672243,1.26349,1583.2,1583.1,3.2078]
[1744905672442,1.26349,1583.2,1583.1,4.47137]
[1744905672644,1.7771,1583.3,1583.2,1.26349]
[1744905672843,3.04051,1583.3,1583.2,1.7425]
[1744905673050,3.04051,1583.3,1583.2,3.00599]
[1744905673242,3.04051,1583.3,1583.2,1.26349]
[1744905673438,1.7771,1583.3,1583.1,4.9503]
[1744905673645,3.04056,1583.3,1583.2,1.26349]
[1744905673845,1.26324,1583.6,1583.3,3.15851]
[1744905674048,1.26324,1583.6,1583.5,1.26325]
[1744905674456,1.26315,1583.7,1583.6,1.26313]
[1744905674751,1.26317,1583.6,1583.5,2.9741]
[1744905675554,1.26317,1583.6,1583.5,1.7109]
[1744905675851,1.26325,1583.5,1583.4,0.812]
[1744905676047,1.26333,1583.4,1583.3,2.97425]
[1744905676350,1.26341,1583.3,1583.2,2.92375]
[1744905676551,1.26341,1583.3,1583.2,4.63465]
[1744905676845,1.26324,1583.6,1583.3,3.15848]
[1744905677052,2.89544,1583.6,1583.5,1.26325]
[1744905677349,1.6322,1583.6,1583.5,1.26325]
[1744905677553,4.47095,1583.7,1583.6,1.26317]
[1744905677739,6.15565,1583.7,1583.6,2.97387]
[1744905677939,2.94785,1583.7,1583.6,2.97387]
[1744905678152,0.00044672,1583.9,1583.6,1.7107]
[1744905678344,1.26341672,1583.9,1583.8,1.26301]
[1744905678650,0.00044672,1583.9,1583.8,2.12941]
[1744905678838,0.00044672,1583.9,1583.8,3.84011]
[1744905680351,1.26337672,1583.9,1583.8,3.84011]
[1744905680548,1.26337672,1583.9,1583.8,2.5771]
[1744905680954,1.26337672,1583.9,1583.8,3.84011]
[1744905681456,1.26337672,1583.9,1583.8,2.5771]
[1744905681657,1.26337672,1583.9,1583.8,3.84011]
[1744905681955,1.26337672,1583.9,1583.8,2.5771]
[1744905682249,1.26309,1583.7,1583.6,2.1469]
[1744905682456,1.26308,1583.8,1583.7,2.88865]
[1744905682753,1.26308,1583.8,1583.7,1.6256]
[1744905682952,2.86748,1583.8,1583.7,2.88869]
[1744905683155,1.26308,1583.8,1583.7,2.88869]
[1744905683656,1.26340672,1583.9,1583.8,1.26301]
[1744905683846,0.00044672,1583.9,1583.7,1.6256]
[1744905684052,1.26301,1583.8,1583.7,2.88864]
[1744905684252,1.26301,1583.8,1583.7,1.6256]
[1744905684452,1.26309,1583.7,1583.6,3.02321]
[1744905684654,1.26309,1583.7,1583.6,4.65861]
[1744905684954,1.26309,1583.7,1583.6,3.3955]
[1744905685152,2.87969,1583.7,1583.6,3.3955]
[1744905685353,1.26307,1583.8,1583.7,1.26303]
[1744905685558,1.26307,1583.8,1583.7,2.89843]
[1744905685757,0.00044672,1583.9,1583.8,1.26301]
[1744905685957,1.26337672,1583.9,1583.8,2.89841]
[1744905686259,1.26337672,1583.9,1583.8,12.41241]
[1744905686260,0.00044672,1583.9,1583.8,12.41241]
[1744905686656,1.26275,1584.2,1584.1,1.26271]
[1744905686957,4.47055,1584.2,1584.1,1.26271]
[1744905687261,1.26277,1584.1,1584.0,2.14759]
[1744905687460,1.26277,1584.1,1584.0,2.14765]
[1744905688053,1.26277,1584.1,1584.0,0.8848]
[1744905688361,2.95347,1584.1,1584.0,0.8848]
[1744905688859,2.95347,1584.1,1584.0,2.14765]